[Event "DVM U12W 2021"]
[Site "Willingen"]
[Date "2022.08.15"]
[Round "5"]
[White "Mersmann, Jasmin"]
[Black "Schube, Theresa"]
[Result "0-1"]
[ECO "C47"]
[WhiteElo "1232"]
[BlackElo "1162"]
[Annotator "NA RC"]
[PlyCount "82"]
[EventDate "2022.08.12"]
[EventType "team-tourn"]
[EventRounds "7"]
[EventCountry "GER"]
[SourceTitle "playchess.com"]
[Source "ChessBase"]
[SourceQuality "1"]
[TimeControl "40/5400+30:1800+30"]

1. e4 {[%emt 0:00:02]} e5 {[%emt 0:00:13]} 2. Nf3 {[%emt 0:00:11]} Nc6 {[%emt 0:00:22]} 3. Nc3 {[%emt 0:00:08]} Nf6 {[%emt 0:03:01]} 4. a3 {[%emt 0:00:13]} d5 {[%emt 0:02:22]} 5. Bb5 {[%emt 0:00:55]} d4 {[%emt 0:12:22]} 6. Ne2 {[%emt 0:01:09]} Bd6 {[%emt 0:02:38]} 7. d3 {[%emt 0:00:18]} h6 {[%emt 0:01:50]} 8. h3 {[%emt 0:00:09]} Qe7 {[%emt 0:03:48]} 9. O-O {[%emt 0:00:39]} Bd7 {[%emt 0:01:50]} 10. Bd2 {[%emt 0:00:29]} g5 {[%emt 0:02:33]} 11. Ng3 {[%emt 0:01:32]} g4 {[%emt 0:05:01]} 12. hxg4 {[%emt 0:00:30]} Bxg4 {[%emt 0:01:41]} 13. Nf5 {[%emt 0:00:17]} Bxf5 {[%emt 0:00:20]} 14. exf5 {[%emt 0:00:26]} a6 {[%emt 0:01:02]} 15. Bxc6+ {[%emt 0:00:17]} bxc6 {[%emt 0:00:28]} 16. Nxd4 {[%emt 0:00:19]} Qd7 {[%emt 0:04:04]} 17. Re1 {[%emt 0:00:47]} O-O-O {[%emt 0:00:59]} 18. Nb3 {[%emt 0:00:50]} Qxf5 {[%emt 0:02:01]} 19. Re3 {[%emt 0:00:32]} Rdg8 {[%emt 0:05:43]} 20. Qf3 {[%emt 0:00:54]} Qg6 {[%emt 0:05:26]} 21. Qg3 {[%emt 0:00:34]} Ng4 {[%emt 0:02:05]} 22. Re4 {[%emt 0:00:34]} f5 {[%emt 0:00:49]} 23. Re2 {[%emt 0:01:09]} f4 {[%emt 0:06:31]} 24. Qh3 {[%emt 0:00:19]} Kb8 {[%emt 0:01:34]} 25. Na5 {[%emt 0:00:38]} Bc5 {[%emt 0:00:58]} 26. Nxc6+ {[%emt 0:00:59]} Qxc6 {[%emt 0:00:31]} 27. Bc3 {[%emt 0:01:12]} Nxf2 {[%emt 0:01:33]} 28. Rxf2 {[%emt 0:00:26]} Bxf2+ {[%emt 0:00:30]} 29. Kxf2 {[%emt 0:00:07]} Rg3 {[%emt 0:01:59]} 30. Qh2 {[%emt 0:00:53]} Rhg8 {[%emt 0:01:43]} 31. Rg1 {[%emt 0:00:22]} Qc5+ {[%emt 0:01:01]} 32. Ke1 {[%emt 0:01:44]} Qe3+ {[%emt 0:01:20]} 33. Kd1 {[%emt 0:00:48]} f3 {[%emt 0:05:25]} 34. Bd2 {[%emt 0:01:12]} Qe2+ {[%emt 0:01:03]} 35. Kc1 {[%emt 0:01:06]} f2 {[%emt 0:00:45]} 36. c3 {[%emt 0:07:30]} f1=Q+ {[%emt 0:00:28]} 37. Rxf1 {[%emt 0:00:18]} Qxf1+ {[%emt 0:00:06]} 38. Kc2 {[%emt 0:00:14]} Qxd3+ {[%emt 0:01:13]} 39. Kd1 {[%emt 0:00:25]} Rxg2 {[%emt 0:00:15]} 40. Qxg2 {[%emt 0:00:49]} Rxg2 {[%emt 0:00:09]} 41. Ke1 {[%emt 0:30:08]} Qe2# {[%emt 0:00:05]} 0-1

[Event "DVM U12W 2021"]
[Site "Willingen"]
[Date "2022.08.15"]
[Round "5"]
[White "Mehner, Clara"]
[Black "Gerlach, Lorena"]
[Result "0-1"]
[ECO "B06"]
[WhiteElo "1150"]
[BlackElo "1120"]
[Annotator "NA RC"]
[PlyCount "110"]
[EventDate "2022.08.12"]
[EventType "team-tourn"]
[EventRounds "7"]
[EventCountry "GER"]
[SourceTitle "playchess.com"]
[Source "ChessBase"]
[SourceQuality "1"]
[TimeControl "40/5400+30:1800+30"]

1. e4 {[%emt 0:00:01]} Nf6 {[%emt 0:00:08]} 2. Nc3 {[%emt 0:01:14]} g6 {[%emt 0:00:21]} 3. d4 {[%emt 0:00:43]} d5 {[%emt 0:01:27]} 4. e5 {[%emt 0:02:09]} Ne4 {[%emt 0:01:37]} 5. Qf3 {[%emt 0:06:34]} Nxc3 {[%emt 0:03:58]} 6. Qxc3 {[%emt 0:00:31]} e6 {[%emt 0:04:15]} 7. Nf3 {[%emt 0:02:01]} a5 {[%emt 0:04:41]} 8. Bg5 {[%emt 0:01:47]} Be7 {[%emt 0:04:09]} 9. Bh6 {[%emt 0:04:09]} Bb4 {[%emt 0:00:34]} 10. Qxb4 {[%emt 0:12:06]} axb4 {[%emt 0:00:11]} 11. c4 {[%emt 0:00:56]} b6 {[%emt 0:17:45]} 12. Bg7 {[%emt 0:05:54]} Rg8 {[%emt 0:03:06]} 13. Bf6 {[%emt 0:01:04]} Qd7 {[%emt 0:00:50]} 14. Bd3 {[%emt 0:03:02]} h6 {[%emt 0:07:23]} 15. O-O {[%emt 0:06:37]} dxc4 {[%emt 0:04:41]} 16. Bxc4 {[%emt 0:02:35]} Ba6 {[%emt 0:01:06]} 17. Rfc1 {[%emt 0:03:34]} g5 {[%emt 0:12:18]} 18. Bb3 {[%emt 0:02:51]} Nc6 {[%emt 0:04:47]} 19. Ba4 {[%emt 0:04:37]} Bb7 {[%emt 0:01:07]} 20. Bc2 {[%emt 0:04:09]} Kf8 {[%emt 0:04:46]} 21. Bh7 {[%emt 0:05:53]} Rg7 {[%emt 0:00:23]} 22. Bxg7+ {[%emt 0:00:53]} Kxg7 {[%emt 0:00:07]} 23. Be4 {[%emt 0:00:43]} Nxd4 {[%emt 0:02:04]} 24. Bxb7 {[%emt 0:02:51]} Ne2+ {[%emt 0:01:00]} 25. Kf1 {[%emt 0:00:50]} Nxc1 {[%emt 0:00:11]} 26. Rxc1 {[%emt 0:01:06]} Rxa2 {[%emt 0:00:14]} 27. Bc6 {[%emt 0:01:30]} Qd3+ {[%emt 0:00:43]} 28. Kg1 {[%emt 0:02:09]} Rxb2 {[%emt 0:00:33]} 29. h3 {[%emt 0:02:54]} Rb1 {[%emt 0:00:32]} 30. Rxb1 {[%emt 0:00:41]} Qxb1+ {[%emt 0:00:06]} 31. Kh2 {[%emt 0:00:29]} Qc2 {[%emt 0:00:37]} 32. Bb5 {[%emt 0:02:18]} Qxf2 {[%emt 0:00:37]} 33. Ba4 {[%emt 0:00:46]} Qa2 {[%emt 0:00:11]} 34. Bd1 {[%emt 0:00:40]} b3 {[%emt 0:00:16]} 35. Bxb3 {[%emt 0:00:49]} Qxb3 {[%emt 0:00:06]} 36. Nd4 {[%emt 0:00:22]} Qc4 {[%emt 0:00:40]} 37. Nf3 {[%emt 0:05:45]} b5 {[%emt 0:00:15]} 38. Kg3 {[%emt 0:01:09]} b4 {[%emt 0:00:12]} 39. Kf2 {[%emt 0:00:44]} b3 {[%emt 0:00:11]} 40. Nd2 {[%emt 0:00:28]} Qd4+ {[%emt 0:00:12]} 41. Ke2 {[%emt 0:30:28]} b2 {[%emt 0:30:08]} 42. g3 {[%emt 0:00:44]} Qxe5+ {[%emt 0:00:17]} 43. Kd1 {[%emt 0:00:27]} c5 {[%emt 0:01:12]} 44. Kc2 {[%emt 0:00:58]} Qe2 {[%emt 0:00:26]} 45. Kc3 {[%emt 0:00:22]} c4 {[%emt 0:00:27]} 46. g4 {[%emt 0:00:22]} Qxd2+ {[%emt 0:00:14]} 47. Kxd2 {[%emt 0:00:14]} b1=Q {[%emt 0:00:08]} 48. Kc3 {[%emt 0:00:14]} Qd3+ {[%emt 0:00:52]} 49. Kb4 {[%emt 0:00:29]} c3 {[%emt 0:00:13]} 50. Kb3 {[%emt 0:00:25]} c2+ {[%emt 0:00:11]} 51. Kb2 {[%emt 0:00:19]} Qd2 {[%emt 0:00:09]} 52. Kb3 {[%emt 0:00:08]} c1=R {[%emt 0:00:11]} 53. Ka4 {[%emt 0:00:36]} Rb1 {[%emt 0:01:29]} 54. Ka3 {[%emt 0:00:11]} Qb2+ {[%emt 0:00:10]} 55. Ka4 {[%emt 0:00:07]} Qb4# {[%emt 0:00:04]} 0-1

[Event "DVM U12W 2021"]
[Site "Willingen"]
[Date "2022.08.15"]
[Round "5"]
[White "Belkina, Elisabeth"]
[Black "Christiansen, Jana-Marie"]
[Result "0-1"]
[ECO "D06"]
[WhiteElo "1126"]
[BlackElo "1120"]
[Annotator "NA RC"]
[PlyCount "96"]
[EventDate "2022.08.12"]
[EventType "team-tourn"]
[EventRounds "7"]
[EventCountry "GER"]
[SourceTitle "playchess.com"]
[Source "ChessBase"]
[SourceQuality "1"]
[TimeControl "40/5400+30:1800+30"]

1. d4 {[%emt 0:00:05]} d5 {[%emt 0:00:00]} 2. Nf3 {[%emt 0:00:08]} Nf6 {[%emt 0:00:00]} 3. Bf4 {[%emt 0:00:06]} Bf5 {[%emt 0:00:02]} 4. e3 {[%emt 0:00:10]} e6 {[%emt 0:00:08]} 5. a3 {[%emt 0:00:12]} Nc6 {[%emt 0:01:01]} 6. c4 {[%emt 0:00:29]} Be7 {[%emt 0:00:43]} 7. Be2 {[%emt 0:01:19]} O-O {[%emt 0:00:22]} 8. O-O {[%emt 0:02:44]} a6 {[%emt 0:03:06]} 9. Nc3 {[%emt 0:05:43]} Ne4 {[%emt 0:10:36]} 10. Nxe4 {[%emt 0:00:12]} dxe4 {[%emt 0:12:08]} 11. Ne5 {[%emt 0:05:23]} Nxe5 {[%emt 0:00:37]} 12. Bxe5 {[%emt 0:17:20]} c6 {[%emt 0:09:33]} 13. c5 {[%emt 0:03:52]} Bh4 {[%emt 0:18:51]} 14. Bg3 {[%emt 0:03:02]} Bg5 {[%emt 0:09:48]} 15. b4 {[%emt 0:05:40]} a5 {[%emt 0:04:38]} 16. f4 {[%emt 0:00:41]} exf3 {[%emt 0:00:42]} 17. Bxf3 {[%emt 0:01:00]} Bxe3+ {[%emt 0:00:01]} 18. Bf2 {[%emt 0:01:07]} Bg5 {[%emt 0:06:24]} 19. Re1 {[%emt 0:02:14]} axb4 {[%emt 0:00:30]} 20. axb4 {[%emt 0:01:01]} Qd7 {[%emt 0:05:14]} 21. Be4 {[%emt 0:07:02]} Bf6 {[%emt 0:01:19]} 22. Bxf5 {[%emt 0:00:11]} exf5 {[%emt 0:00:54]} 23. Rxa8 {[%emt 0:00:09]} Rxa8 {[%emt 0:02:23]} 24. Qe2 {[%emt 0:03:58]} Rd8 {[%emt 0:01:21]} 25. Kf1 {[%emt 0:00:20]} g6 {[%emt 0:00:07]} 26. Rd1 {[%emt 0:00:44]} Qe8 {[%emt 0:00:26]} 27. Qxe8+ {[%emt 0:00:07]} Rxe8 {[%emt 0:00:07]} 28. d5 {[%emt 0:00:17]} Rd8 {[%emt 0:00:10]} 29. d6 {[%emt 0:01:09]} Kf8 {[%emt 0:00:09]} 30. Re1 {[%emt 0:00:18]} Bc3 {[%emt 0:01:27]} 31. Rb1 {[%emt 0:00:19]} Ke8 {[%emt 0:00:18]} 32. b5 {[%emt 0:02:24]} Ra8 {[%emt 0:00:34]} 33. bxc6 {[%emt 0:00:16]} bxc6 {[%emt 0:01:16]} 34. Rd1 {[%emt 0:00:10]} Ra1 {[%emt 0:00:44]} 35. d7+ {[%emt 0:00:19]} Kd8 {[%emt 0:00:06]} 36. Bh4+ {[%emt 0:00:08]} f6 {[%emt 0:01:34]} 37. Rxa1 {[%emt 0:00:07]} Bxa1 {[%emt 0:00:27]} 38. Ke2 {[%emt 0:00:07]} Kxd7 {[%emt 0:00:04]} 39. Kd3 {[%emt 0:00:24]} Ke6 {[%emt 0:00:19]} 40. Kc4 {[%emt 0:00:24]} g5 {[%emt 0:00:23]} 41. Be1 {[%emt 0:30:42]} h5 {[%emt 0:31:53]} 42. Bf2 {[%emt 0:00:31]} Be5 {[%emt 0:01:24]} 43. h4 {[%emt 0:00:39]} f4 {[%emt 0:02:02]} 44. Kb4 {[%emt 0:00:16]} Kd5 {[%emt 0:00:20]} 45. Ka5 {[%emt 0:00:28]} gxh4 {[%emt 0:00:13]} 46. Kb6 {[%emt 0:00:23]} h3 {[%emt 0:00:06]} 47. gxh3 {[%emt 0:00:22]} f3 {[%emt 0:01:05]} 48. h4 {[%emt 0:00:11]} Bd4 0-1

[Event "DVM U12W 2021"]
[Site "Willingen"]
[Date "2022.08.15"]
[Round "5"]
[White "Glotz, Diana"]
[Black "Hefele, Stefanie"]
[Result "1-0"]
[ECO "C50"]
[WhiteElo "1116"]
[BlackElo "1180"]
[Annotator "NA RC"]
[PlyCount "117"]
[EventDate "2022.08.12"]
[EventType "team-tourn"]
[EventRounds "7"]
[EventCountry "GER"]
[SourceTitle "playchess.com"]
[Source "ChessBase"]
[SourceQuality "1"]
[TimeControl "40/5400+30:1800+30"]

1. e4 {[%emt 0:00:07]} e5 {[%emt 0:00:00]} 2. Nf3 {[%emt 0:00:08]} Nc6 {[%emt 0:00:00]} 3. Bc4 {[%emt 0:00:11]} Bc5 {[%emt 0:00:10]} 4. Nc3 {[%emt 0:00:13]} Nf6 {[%emt 0:00:30]} 5. d3 {[%emt 0:00:11]} d6 {[%emt 0:00:22]} 6. h3 {[%emt 0:00:21]} Be6 {[%emt 0:00:11]} 7. Bb3 {[%emt 0:01:30]} Qe7 {[%emt 0:01:54]} 8. Bg5 {[%emt 0:00:34]} h6 {[%emt 0:00:43]} 9. Be3 {[%emt 0:01:20]} Nd4 {[%emt 0:03:21]} 10. Nd5 {[%emt 0:03:00]} Bxd5 {[%emt 0:01:31]} 11. Bxd5 {[%emt 0:00:30]} c6 {[%emt 0:01:48]} 12. Bb3 {[%emt 0:01:18]} O-O {[%emt 0:04:28]} 13. c3 {[%emt 0:03:32]} Nxb3 {[%emt 0:00:28]} 14. axb3 {[%emt 0:00:55]} Bxe3 {[%emt 0:00:12]} 15. fxe3 {[%emt 0:00:56]} d5 {[%emt 0:01:30]} 16. exd5 {[%emt 0:00:50]} cxd5 {[%emt 0:01:20]} 17. Nd2 {[%emt 0:02:34]} e4 {[%emt 0:00:25]} 18. d4 {[%emt 0:01:07]} Qc7 {[%emt 0:01:22]} 19. O-O {[%emt 0:02:33]} Qg3 {[%emt 0:01:25]} 20. Qe1 {[%emt 0:04:22]} Nh5 {[%emt 0:01:16]} 21. Qxg3 {[%emt 0:00:13]} Nxg3 {[%emt 0:00:17]} 22. Rf2 {[%emt 0:00:52]} Rfe8 {[%emt 0:02:46]} 23. Ra5 {[%emt 0:01:00]} Red8 {[%emt 0:01:25]} 24. Kh2 {[%emt 0:00:49]} Nh5 {[%emt 0:00:48]} 25. c4 {[%emt 0:00:45]} Nf6 {[%emt 0:01:06]} 26. Rf5 {[%emt 0:01:21]} dxc4 {[%emt 0:00:15]} 27. bxc4 {[%emt 0:04:00]} Re8 {[%emt 0:00:46]} 28. Rfe5 {[%emt 0:00:23]} Rxe5 {[%emt 0:00:06]} 29. Rxe5 {[%emt 0:01:09]} Rc8 {[%emt 0:01:47]} 30. c5 {[%emt 0:01:46]} b6 {[%emt 0:00:06]} 31. cxb6 {[%emt 0:00:11]} axb6 {[%emt 0:01:04]} 32. Nxe4 {[%emt 0:01:06]} Nxe4 {[%emt 0:00:08]} 33. Rxe4 {[%emt 0:00:43]} Kf8 {[%emt 0:00:52]} 34. d5 {[%emt 0:01:09]} Re8 {[%emt 0:00:25]} 35. Rxe8+ {[%emt 0:00:06]} Kxe8 {[%emt 0:00:11]} 36. Kg3 {[%emt 0:00:26]} Kd7 {[%emt 0:00:07]} 37. Kf4 {[%emt 0:00:22]} Kd6 {[%emt 0:00:15]} 38. e4 {[%emt 0:00:39]} g6 {[%emt 0:00:08]} 39. g4 {[%emt 0:00:29]} f6 {[%emt 0:00:44]} 40. h4 {[%emt 0:01:00]} b5 {[%emt 0:00:23]} 41. g5 {[%emt 0:30:49]} hxg5+ {[%emt 0:30:06]} 42. hxg5 {[%emt 0:02:03]} fxg5+ {[%emt 0:00:10]} 43. Kxg5 {[%emt 0:00:12]} Ke5 {[%emt 0:00:07]} 44. Kxg6 {[%emt 0:01:23]} Kd6 {[%emt 0:00:12]} 45. Kf6 {[%emt 0:00:38]} Kd7 {[%emt 0:00:10]} 46. e5 {[%emt 0:00:46]} b4 {[%emt 0:00:06]} 47. e6+ {[%emt 0:00:16]} Kd8 {[%emt 0:00:17]} 48. Kf7 {[%emt 0:00:35]} b3 {[%emt 0:00:07]} 49. e7+ {[%emt 0:00:07]} Kc7 {[%emt 0:00:15]} 50. e8=Q {[%emt 0:00:12]} Kd6 {[%emt 0:00:14]} 51. Qe6+ {[%emt 0:00:09]} Kc5 {[%emt 0:00:12]} 52. d6 {[%emt 0:00:50]} Kb4 {[%emt 0:00:19]} 53. Qc8 {[%emt 0:00:10]} Kb5 {[%emt 0:00:09]} 54. Ke6 {[%emt 0:00:17]} Kb6 {[%emt 0:00:13]} 55. Qc7+ {[%emt 0:00:20]} Ka6 {[%emt 0:00:13]} 56. Qb8 {[%emt 0:00:13]} Ka5 {[%emt 0:00:08]} 57. Kd5 {[%emt 0:00:35]} Ka4 {[%emt 0:00:09]} 58. Kc5 {[%emt 0:00:07]} Ka5 59. Qb5# {[%emt 1:34:41]} 1-0

[Event "DVM U12W 2021"]
[Site "Willingen"]
[Date "2022.08.15"]
[Round "5"]
[White "Kopylov, Diana"]
[Black "Schuelke, Rosalie"]
[Result "0-1"]
[ECO "E35"]
[WhiteElo "1108"]
[BlackElo "1297"]
[Annotator "NA RC"]
[PlyCount "62"]
[EventDate "2022.08.12"]
[EventType "team-tourn"]
[EventRounds "7"]
[EventCountry "GER"]
[SourceTitle "playchess.com"]
[Source "ChessBase"]
[SourceQuality "1"]
[TimeControl "40/5400+30:1800+30"]

1. d4 {[%emt 0:00:02]} Nf6 {[%emt 0:00:09]} 2. c4 {[%emt 0:00:07]} e6 {[%emt 0:00:20]} 3. Nc3 {[%emt 0:00:19]} Bb4 {[%emt 0:00:19]} 4. Qc2 {[%emt 0:00:17]} O-O {[%emt 0:00:21]} 5. Bg5 {[%emt 0:01:22]} h6 {[%emt 0:00:41]} 6. Bh4 {[%emt 0:00:58]} d5 {[%emt 0:01:25]} 7. cxd5 {[%emt 0:01:50]} exd5 {[%emt 0:00:14]} 8. e3 {[%emt 0:00:37]} b6 {[%emt 0:03:09]} 9. a3 {[%emt 0:06:00]} Bxc3+ {[%emt 0:00:10]} 10. Qxc3 {[%emt 0:00:18]} Bb7 {[%emt 0:01:21]} 11. Nf3 {[%emt 0:02:41]} Nbd7 {[%emt 0:03:30]} 12. Bd3 {[%emt 0:05:20]} c5 {[%emt 0:00:53]} 13. O-O {[%emt 0:05:51]} Rc8 {[%emt 0:02:05]} 14. Rac1 {[%emt 0:08:17]} Qc7 {[%emt 0:02:59]} 15. Rc2 {[%emt 0:09:21]} Ne4 {[%emt 0:05:10]} 16. Bxe4 {[%emt 0:05:13]} dxe4 {[%emt 0:00:25]} 17. Bg3 {[%emt 0:01:46]} Qd8 {[%emt 0:01:23]} 18. Ne5 {[%emt 0:19:22]} cxd4 {[%emt 0:04:28]} 19. Qb3 {[%emt 0:04:19]} Nc5 {[%emt 0:03:16]} 20. Qb4 {[%emt 0:05:12]} d3 {[%emt 0:01:22]} 21. Rcc1 {[%emt 0:06:12]} a5 {[%emt 0:07:34]} 22. Qc3 {[%emt 0:02:55]} Bd5 {[%emt 0:11:39]} 23. Nc4 {[%emt 0:05:29]} Ne6 {[%emt 0:04:56]} 24. b3 {[%emt 0:03:36]} b5 {[%emt 0:05:28]} 25. Qxa5 {[%emt 0:01:54]} bxc4 {[%emt 0:00:18]} 26. Qxd8 {[%emt 0:00:09]} Rfxd8 {[%emt 0:00:12]} 27. bxc4 {[%emt 0:00:35]} Bxc4 {[%emt 0:00:11]} 28. Rfd1 {[%emt 0:00:50]} Bb3 {[%emt 0:01:03]} 29. Rxc8 {[%emt 0:00:43]} Rxc8 {[%emt 0:00:45]} 30. Ra1 {[%emt 0:00:56]} d2 {[%emt 0:00:06]} 31. h3 {[%emt 0:00:15]} Rc1+ {[%emt 0:00:09]} 0-1

[Event "DVM U12W 2021"]
[Site "Willingen"]
[Date "2022.08.15"]
[Round "5"]
[White "Berger, Jennifer"]
[Black "Borck, Elena"]
[Result "0-1"]
[ECO "B00"]
[WhiteElo "1050"]
[BlackElo "739"]
[Annotator "NA RC"]
[PlyCount "86"]
[EventDate "2022.08.12"]
[EventType "team-tourn"]
[EventRounds "7"]
[EventCountry "GER"]
[SourceTitle "playchess.com"]
[Source "ChessBase"]
[SourceQuality "1"]
[TimeControl "40/5400+30:1800+30"]

1. e4 {[%emt 0:00:58]} d6 {[%emt 0:00:00]} 2. d4 {[%emt 0:03:13]} Nc6 {[%emt 0:01:02]} 3. Nc3 {[%emt 0:01:29]} Nf6 {[%emt 0:00:37]} 4. Be3 {[%emt 0:03:05]} e5 {[%emt 0:02:29]} 5. dxe5 {[%emt 0:01:22]} dxe5 {[%emt 0:00:15]} 6. Qxd8+ {[%emt 0:00:15]} Nxd8 {[%emt 0:00:32]} 7. Nf3 {[%emt 0:01:24]} Bd6 {[%emt 0:00:27]} 8. O-O-O {[%emt 0:01:15]} Bg4 {[%emt 0:02:20]} 9. h3 {[%emt 0:00:30]} Bxf3 {[%emt 0:00:12]} 10. gxf3 {[%emt 0:01:35]} Nc6 {[%emt 0:00:29]} 11. Bb5 {[%emt 0:00:39]} O-O {[%emt 0:00:12]} 12. Rdg1 {[%emt 0:03:21]} Kh8 {[%emt 0:00:27]} 13. Bh6 {[%emt 0:00:38]} gxh6 {[%emt 0:01:39]} 14. Bc4 {[%emt 0:03:24]} Nd4 {[%emt 0:01:52]} 15. Rg3 {[%emt 0:01:42]} Nh5 {[%emt 0:01:53]} 16. Rg4 {[%emt 0:00:27]} Nxf3 {[%emt 0:01:47]} 17. h4 {[%emt 0:05:07]} Rg8 {[%emt 0:00:28]} 18. Rxg8+ {[%emt 0:00:13]} Rxg8 {[%emt 0:00:12]} 19. Bxf7 {[%emt 0:00:11]} Rg1+ {[%emt 0:00:15]} 20. Rxg1 {[%emt 0:00:05]} Nxg1 {[%emt 0:00:35]} 21. Nd5 {[%emt 0:04:37]} Nf4 {[%emt 0:02:18]} 22. Ne3 {[%emt 0:04:11]} Kg7 {[%emt 0:01:15]} 23. Bb3 {[%emt 0:01:19]} Nge2+ {[%emt 0:00:44]} 24. Kd1 {[%emt 0:01:25]} Nd4 {[%emt 0:00:42]} 25. Bc4 {[%emt 0:00:41]} a6 {[%emt 0:01:07]} 26. c3 {[%emt 0:04:28]} b5 {[%emt 0:00:47]} 27. cxd4 {[%emt 0:00:15]} bxc4 {[%emt 0:00:11]} 28. dxe5 {[%emt 0:00:23]} Bxe5 {[%emt 0:00:08]} 29. Nxc4 {[%emt 0:01:36]} Bf6 {[%emt 0:01:35]} 30. e5 {[%emt 0:00:15]} Bxh4 {[%emt 0:00:09]} 31. Kd2 {[%emt 0:00:14]} Bxf2 {[%emt 0:01:01]} 32. a4 {[%emt 0:01:14]} h5 {[%emt 0:00:27]} 33. Ne3 {[%emt 0:03:15]} h4 {[%emt 0:01:00]} 34. Nf5+ {[%emt 0:01:54]} Kg6 {[%emt 0:00:22]} 35. e6 {[%emt 0:00:18]} Nxe6 {[%emt 0:00:26]} 36. Ke2 {[%emt 0:00:38]} Kxf5 {[%emt 0:00:10]} 37. Kxf2 {[%emt 0:00:14]} Nf4 {[%emt 0:00:22]} 38. Kf3 {[%emt 0:00:42]} h3 {[%emt 0:00:09]} 39. Kg3 {[%emt 0:00:39]} h5 {[%emt 0:00:13]} 40. Kh4 {[%emt 0:00:50]} h2 {[%emt 0:00:12]} 41. b4 {[%emt 0:30:11]} h1=Q+ {[%emt 0:28:13]} 42. Kg3 {[%emt 0:00:43]} Qg2+ {[%emt 0:00:11]} 43. Kh4 {[%emt 0:00:19]} Qg4# 0-1

[Event "DVM U12W 2021"]
[Site "Willingen"]
[Date "2022.08.15"]
[Round "5"]
[White "Fruth, Julia"]
[Black "Henzel, Leonie"]
[Result "1/2-1/2"]
[ECO "C01"]
[WhiteElo "1037"]
[BlackElo "1134"]
[Annotator "NA RC"]
[PlyCount "114"]
[EventDate "2022.08.12"]
[EventType "team-tourn"]
[EventRounds "7"]
[EventCountry "GER"]
[SourceTitle "playchess.com"]
[Source "ChessBase"]
[SourceQuality "1"]
[TimeControl "40/5400+30:1800+30"]

1. e4 {[%emt 0:00:03]} e6 {[%emt 0:00:08]} 2. d4 {[%emt 0:00:04]} d5 {[%emt 0:00:08]} 3. Bd3 {[%emt 0:00:06]} dxe4 {[%emt 0:00:32]} 4. Bxe4 {[%emt 0:00:08]} Nf6 {[%emt 0:00:32]} 5. Bf3 {[%emt 0:00:06]} Bd6 {[%emt 0:02:48]} 6. Ne2 {[%emt 0:00:27]} O-O {[%emt 0:02:04]} 7. O-O {[%emt 0:00:22]} c6 {[%emt 0:01:34]} 8. Bf4 {[%emt 0:03:40]} Nd5 {[%emt 0:09:29]} 9. Qd2 {[%emt 0:06:19]} Nxf4 {[%emt 0:01:46]} 10. Nxf4 {[%emt 0:00:23]} Qc7 {[%emt 0:01:24]} 11. g3 {[%emt 0:01:51]} Nd7 {[%emt 0:06:06]} 12. Ne2 {[%emt 0:00:14]} Nf6 {[%emt 0:02:49]} 13. c4 {[%emt 0:04:19]} b6 {[%emt 0:08:05]} 14. b3 {[%emt 0:05:10]} Rb8 {[%emt 0:01:47]} 15. Nbc3 {[%emt 0:05:58]} Bb7 {[%emt 0:03:17]} 16. Rfd1 {[%emt 0:02:31]} Rfd8 {[%emt 0:05:35]} 17. Qd3 {[%emt 0:02:23]} Ba6 {[%emt 0:09:08]} 18. Rac1 {[%emt 0:01:42]} Be7 {[%emt 0:02:20]} 19. Qe3 {[%emt 0:01:47]} Bb7 {[%emt 0:02:12]} 20. d5 {[%emt 0:01:44]} cxd5 {[%emt 0:01:39]} 21. cxd5 {[%emt 0:00:15]} exd5 {[%emt 0:00:15]} 22. Nxd5 {[%emt 0:00:58]} Nxd5 {[%emt 0:02:05]} 23. Bxd5 {[%emt 0:00:42]} Bc5 {[%emt 0:01:11]} 24. Qf3 {[%emt 0:02:16]} Bxd5 {[%emt 0:02:06]} 25. Rxd5 {[%emt 0:01:25]} Rxd5 {[%emt 0:01:10]} 26. Qxd5 {[%emt 0:00:07]} Qe7 {[%emt 0:00:40]} 27. Nf4 {[%emt 0:04:09]} Rd8 {[%emt 0:02:23]} 28. Qf3 {[%emt 0:02:40]} g6 {[%emt 0:03:28]} 29. Nd5 {[%emt 0:03:07]} Qe5 {[%emt 0:05:32]} 30. Nf6+ {[%emt 0:00:17]} Kg7 {[%emt 0:02:29]} 31. Ng4 {[%emt 0:01:13]} Qe6 {[%emt 0:01:55]} 32. Kf1 {[%emt 0:07:05]} h5 {[%emt 0:02:01]} 33. Ne3 {[%emt 0:00:17]} Qh3+ {[%emt 0:04:29]} 34. Kg1 {[%emt 0:00:37]} Qe6 {[%emt 0:02:11]} 35. Re1 {[%emt 0:01:17]} Rd2 {[%emt 0:07:14]} 36. Re2 {[%emt 0:03:05]} Rxe2 {[%emt 0:01:03]} 37. Qxe2 {[%emt 0:00:18]} Bxe3 {[%emt 0:00:31]} 38. Qxe3 {[%emt 0:00:06]} Qxe3 {[%emt 0:00:08]} 39. fxe3 {[%emt 0:00:10]} Kf6 {[%emt 0:00:03]} 40. Kf2 {[%emt 0:01:10]} Ke5 {[%emt 0:00:18]} 41. Ke1 {[%emt 0:30:15]} Ke4 {[%emt 0:30:25]} 42. Ke2 {[%emt 0:00:07]} f5 {[%emt 0:00:54]} 43. h3 {[%emt 0:00:29]} g5 {[%emt 0:00:25]} 44. a3 {[%emt 0:00:29]} b5 {[%emt 0:01:42]} 45. b4 {[%emt 0:00:33]} a6 {[%emt 0:00:19]} 46. Kf2 {[%emt 0:01:21]} Kd3 {[%emt 0:00:18]} 47. Kf3 {[%emt 0:00:10]} Kc3 {[%emt 0:00:25]} 48. e4 {[%emt 0:00:33]} fxe4+ {[%emt 0:00:55]} 49. Kxe4 {[%emt 0:00:07]} h4 {[%emt 0:00:08]} 50. g4 {[%emt 0:01:12]} Kb3 {[%emt 0:00:18]} 51. Kf5 {[%emt 0:00:05]} Kxa3 {[%emt 0:00:07]} 52. Kxg5 {[%emt 0:00:06]} Kxb4 {[%emt 0:00:15]} 53. Kxh4 {[%emt 0:00:09]} Kc3 {[%emt 0:00:10]} 54. g5 {[%emt 0:00:50]} b4 {[%emt 0:00:08]} 55. g6 {[%emt 0:00:04]} b3 {[%emt 0:00:07]} 56. g7 {[%emt 0:00:07]} b2 {[%emt 0:00:40]} 57. g8=Q {[%emt 0:00:36]} b1=Q {[%emt 0:02:13]} 1/2-1/2